[Event "*** Titled Tuesday 3|2 Blitz"]
[Site "Chess.com"]
[Date "2017.06.06"]
[Round "4"]
[White "AndrewDGreen"]
[Black "SmarterChess"]
[Result "1-0"]
[WhiteElo "2199"]
[BlackElo "2099"]
[TimeControl "180+2"]
[EndTime "14:39:13 PDT"]
[Termination "AndrewDGreen won on time"]

1. d4 {[%clk 0:03:02]} 1... c5 {[%clk 0:02:57.5]} 2. d5 {[%clk 0:03:02]} 2... e5
{[%clk 0:02:58.5]} 3. e4 {[%clk 0:02:59.9]} 3... d6 {[%clk 0:02:59.2]} 4. Bb5+
{[%clk 0:02:58.3]} 4... Nd7 {[%clk 0:02:59.2]} 5. a4 {[%clk 0:02:57.8]} 5... Be7
{[%clk 0:02:59.2]} 6. Nf3 {[%clk 0:02:51.9]} 6... h6 {[%clk 0:02:58.3]} 7. Nc3
{[%clk 0:02:50.6]} 7... Bg5 {[%clk 0:02:59]} 8. Nxg5 {[%clk 0:02:48.7]} 8...
hxg5 {[%clk 0:03:00.9]} 9. Be3 {[%clk 0:02:35.2]} 9... a6 {[%clk 0:02:59.8]} 10.
Be2 {[%clk 0:02:34.2]} 10... Ndf6 {[%clk 0:02:48.1]} 11. Bxg5 {[%clk 0:02:28.3]}
11... Bd7 {[%clk 0:02:49.1]} 12. Qd2 {[%clk 0:02:19]} 12... Qb6 {[%clk 0:02:47]}
13. O-O {[%clk 0:02:13.1]} 13... Ng4 {[%clk 0:02:35.8]} 14. h3 {[%clk
0:02:04.4]} 14... N4h6 {[%clk 0:02:25.9]} 15. a5 {[%clk 0:01:55.8]} 15... Qc7
{[%clk 0:02:22.1]} 16. f4 {[%clk 0:01:41.3]} 16... f6 {[%clk 0:02:22.3]} 17. Bh4
{[%clk 0:01:40.9]} 17... Nf7 {[%clk 0:02:16.5]} 18. Bg3 {[%clk 0:01:34]} 18...
O-O-O {[%clk 0:01:59.6]} 19. f5 {[%clk 0:01:32.3]} 19... Ne7 {[%clk 0:01:49]}
20. Rfb1 {[%clk 0:01:27.5]} 20... g6 {[%clk 0:01:48.5]} 21. fxg6 {[%clk
0:01:23.2]} 21... Nxg6 {[%clk 0:01:49.1]} 22. Kh2 {[%clk 0:01:17.5]} 22... Ng5
{[%clk 0:01:47.6]} 23. Bf1 {[%clk 0:01:09.2]} 23... Nh4 {[%clk 0:01:31.5]} 24.
Qf2 {[%clk 0:01:00.7]} 24... Bxh3 {[%clk 0:00:50.4]} 25. gxh3 {[%clk 0:00:59.6]}
25... Nhf3+ {[%clk 0:00:45.1]} 26. Kg2 {[%clk 0:00:57.7]} 26... Rxh3 {[%clk
0:00:40]} 27. Be2 {[%clk 0:00:49.1]} 27... Nd4 {[%clk 0:00:20.9]} 28. Bg4+
{[%clk 0:00:49.1]} 28... Kb8 {[%clk 0:00:20.2]} 29. Bxh3 {[%clk 0:00:49.3]}
29... Nxh3 {[%clk 0:00:20.4]} 30. Kxh3 {[%clk 0:00:50.1]} 30... Qd7+ {[%clk
0:00:12.4]} 31. Kg2 {[%clk 0:00:49.6]} 31... Rg8 {[%clk 0:00:13.1]} 32. Rh1
{[%clk 0:00:47.9]} 32... Qg4 {[%clk 0:00:12.8]} 33. Rag1 {[%clk 0:00:24.3]}
33... f5 {[%clk 0:00:13.4]} 34. exf5 {[%clk 0:00:18.6]} 34... Nxf5 {[%clk
0:00:14.6]} 35. Rh3 {[%clk 0:00:16.9]} 35... Nh4+ {[%clk 0:00:11]} 36. Rxh4
{[%clk 0:00:11.9]} 36... Qxh4 {[%clk 0:00:12]} 37. Kf1 {[%clk 0:00:12.8]} 37...
Qc4+ {[%clk 0:00:11.7]} 38. Ke1 {[%clk 0:00:12.2]} 1-0

[Event "*** Titled Tuesday 3|2 Blitz"]
[Site "Chess.com"]
[Date "2017.06.06"]
[Round "4"]
[White "AkshatChandra"]
[Black "penguingm1"]
[Result "0-1"]
[WhiteElo "2732"]
[BlackElo "2601"]
[TimeControl "180+2"]
[EndTime "14:39:25 PDT"]
[Termination "penguingm1 won on time"]

1. e4 {[%clk 0:03:02]} 1... e5 {[%clk 0:03:00.3]} 2. Nf3 {[%clk 0:03:02.8]} 2...
Nc6 {[%clk 0:03:01]} 3. Bc4 {[%clk 0:03:04]} 3... Bc5 {[%clk 0:03:01.3]} 4. O-O
{[%clk 0:03:04.8]} 4... Nf6 {[%clk 0:03:00.4]} 5. d3 {[%clk 0:03:05.7]} 5... a6
{[%clk 0:03:01.1]} 6. c3 {[%clk 0:03:05.2]} 6... Ba7 {[%clk 0:03:01.9]} 7. a4
{[%clk 0:03:02.2]} 7... d6 {[%clk 0:03:01.6]} 8. Na3 {[%clk 0:03:00.2]} 8... h6
{[%clk 0:02:57.9]} 9. Nc2 {[%clk 0:02:59.4]} 9... O-O {[%clk 0:02:54.3]} 10. Be3
{[%clk 0:02:58.7]} 10... Be6 {[%clk 0:02:54.9]} 11. Bxe6 {[%clk 0:02:54.6]}
11... fxe6 {[%clk 0:02:55.5]} 12. Bxa7 {[%clk 0:02:50]} 12... Rxa7 {[%clk
0:02:57.4]} 13. Re1 {[%clk 0:02:40.3]} 13... Qd7 {[%clk 0:02:58.1]} 14. d4
{[%clk 0:02:38.8]} 14... exd4 {[%clk 0:02:59]} 15. Nfxd4 {[%clk 0:02:36.1]}
15... Raa8 {[%clk 0:01:56.7]} 16. Nxc6 {[%clk 0:02:31]} 16... bxc6 {[%clk
0:01:50.3]} 17. e5 {[%clk 0:02:20.5]} 17... Nd5 {[%clk 0:01:51.1]} 18. g3 {[%clk
0:02:13.7]} 18... Rab8 {[%clk 0:01:36.5]} 19. c4 {[%clk 0:02:04.5]} 19... Ne7
{[%clk 0:01:33.2]} 20. exd6 {[%clk 0:02:01.1]} 20... cxd6 {[%clk 0:01:33.5]} 21.
b4 {[%clk 0:01:55.2]} 21... Ng6 {[%clk 0:01:19]} 22. Qd2 {[%clk 0:01:29.4]}
22... Qf7 {[%clk 0:01:14.4]} 23. f4 {[%clk 0:01:21.7]} 23... e5 {[%clk
0:01:11.3]} 24. Qxd6 {[%clk 0:01:11.8]} 24... Kh7 {[%clk 0:00:31]} 25. Qxc6
{[%clk 0:00:53.3]} 25... exf4 {[%clk 0:00:18.9]} 26. Qe6 {[%clk 0:00:44.5]}
26... Qc7 {[%clk 0:00:18.9]} 27. Qe4 {[%clk 0:00:29.7]} 27... Rbe8 {[%clk
0:00:18.7]} 28. Qd3 {[%clk 0:00:28.5]} 28... Rd8 {[%clk 0:00:19.7]} 29. Qe4
{[%clk 0:00:24.6]} 29... fxg3 {[%clk 0:00:20.7]} 30. Nd4 {[%clk 0:00:16.5]}
30... Rf4 {[%clk 0:00:10.7]} 31. Ne6 {[%clk 0:00:13.5]} 31... Rxe4 {[%clk
0:00:11.7]} 32. Nxc7 {[%clk 0:00:14.6]} 32... Rxc4 {[%clk 0:00:13.1]} 33. Nxa6
{[%clk 0:00:12.3]} 33... gxh2+ {[%clk 0:00:14.5]} 34. Kh1 {[%clk 0:00:09.6]}
34... Nh4 {[%clk 0:00:15.8]} 35. Red1 {[%clk 0:00:06.2]} 35... Re8 {[%clk
0:00:16]} 36. Re1 {[%clk 0:00:06.7]} 36... Rec8 {[%clk 0:00:15.4]} 37. Nc5
{[%clk 0:00:06.1]} 37... Rxb4 {[%clk 0:00:15.6]} 38. Nd3 {[%clk 0:00:05.5]}
38... Rb3 {[%clk 0:00:16.4]} 39. Ne5 {[%clk 0:00:06.8]} 39... Nf5 {[%clk
0:00:15.4]} 40. Ra2 {[%clk 0:00:05.9]} 40... Re8 {[%clk 0:00:14.4]} 41. Kxh2
{[%clk 0:00:06.6]} 41... Ne3 {[%clk 0:00:11.5]} 42. Nf3 {[%clk 0:00:06.4]} 42...
Rf8 {[%clk 0:00:12.4]} 43. Ne5 {[%clk 0:00:04.7]} 43... Rf5 {[%clk 0:00:12.7]}
0-1

[Event "*** Titled Tuesday 3|2 Blitz"]
[Site "Chess.com"]
[Date "2017.06.06"]
[Round "4"]
[White "belisarius64"]
[Black "Quiet_Desperation"]
[Result "0-1"]
[WhiteElo "2231"]
[BlackElo "1967"]
[TimeControl "180+2"]
[EndTime "14:39:32 PDT"]
[Termination "Quiet_Desperation won by checkmate"]

1. e4 {[%clk 0:03:02]} 1... Nc6 {[%clk 0:03:01]} 2. Nf3 {[%clk 0:03:02.3]} 2...
d6 {[%clk 0:03:02.4]} 3. d4 {[%clk 0:03:01.3]} 3... Nf6 {[%clk 0:03:01]} 4. Nc3
{[%clk 0:03:01.3]} 4... d5 {[%clk 0:02:59.3]} 5. e5 {[%clk 0:02:59.1]} 5... Ne4
{[%clk 0:03:00.4]} 6. Bd3 {[%clk 0:02:59.9]} 6... Bf5 {[%clk 0:02:57.8]} 7. O-O
{[%clk 0:02:58.9]} 7... e6 {[%clk 0:02:57.2]} 8. Ne2 {[%clk 0:02:53.3]} 8... Be7
{[%clk 0:02:55]} 9. c3 {[%clk 0:02:54.3]} 9... O-O {[%clk 0:02:50.6]} 10. Ne1
{[%clk 0:02:55.5]} 10... h6 {[%clk 0:02:46]} 11. f3 {[%clk 0:02:56.4]} 11... Ng5
{[%clk 0:02:44.5]} 12. Bxf5 {[%clk 0:02:57.6]} 12... exf5 {[%clk 0:02:45.3]} 13.
Nd3 {[%clk 0:02:53.3]} 13... Qd7 {[%clk 0:02:40.1]} 14. Nef4 {[%clk 0:02:50.8]}
14... Ne6 {[%clk 0:02:37]} 15. Qe2 {[%clk 0:02:48]} 15... Ncd8 {[%clk
0:02:33.4]} 16. Bd2 {[%clk 0:02:41.7]} 16... c5 {[%clk 0:02:26]} 17. dxc5 {[%clk
0:02:37.3]} 17... Nxc5 {[%clk 0:02:22.1]} 18. Rad1 {[%clk 0:02:36.6]} 18... Nde6
{[%clk 0:02:18.2]} 19. Nxc5 {[%clk 0:02:27.5]} 19... Bxc5+ {[%clk 0:02:16.2]}
20. Kh1 {[%clk 0:02:28.4]} 20... Qc6 {[%clk 0:02:04.1]} 21. Be3 {[%clk
0:02:28.4]} 21... Rfd8 {[%clk 0:02:01.5]} 22. Rd2 {[%clk 0:02:10.9]} 22... Rd7
{[%clk 0:01:55.5]} 23. Rfd1 {[%clk 0:02:10.7]} 23... Rad8 {[%clk 0:01:52.7]} 24.
Qf2 {[%clk 0:01:58.4]} 24... Bxe3 {[%clk 0:01:41]} 25. Qxe3 {[%clk 0:01:59.4]}
25... d4 {[%clk 0:01:39.5]} 26. cxd4 {[%clk 0:01:59.2]} 26... Nxd4 {[%clk
0:01:34.9]} 27. Qc3 {[%clk 0:01:26.6]} 27... Qa4 {[%clk 0:01:28.2]} 28. b3
{[%clk 0:01:24.3]} 28... Qb5 {[%clk 0:01:27.2]} 29. h3 {[%clk 0:01:06.1]} 29...
Qxe5 {[%clk 0:01:25.3]} 30. Ne2 {[%clk 0:01:04.4]} 30... Nxf3 {[%clk 0:01:08.4]}
31. Qxe5 {[%clk 0:00:37.9]} 31... Nxe5 {[%clk 0:01:09.2]} 32. Rxd7 {[%clk
0:00:38.8]} 32... Rxd7 {[%clk 0:01:04.1]} 33. Rc1 {[%clk 0:00:39.2]} 33... g5
{[%clk 0:01:01.1]} 34. Rc5 {[%clk 0:00:39.4]} 34... f6 {[%clk 0:01:01.4]} 35.
Rc8+ {[%clk 0:00:38.3]} 35... Kf7 {[%clk 0:01:00.2]} 36. Ra8 {[%clk 0:00:39.1]}
36... a6 {[%clk 0:00:53.9]} 37. Rb8 {[%clk 0:00:40.3]} 37... f4 {[%clk
0:00:52.4]} 38. Nc3 {[%clk 0:00:40.2]} 38... Ke6 {[%clk 0:00:51.7]} 39. Ne4
{[%clk 0:00:39.3]} 39... Kf5 {[%clk 0:00:49.7]} 40. Nc5 {[%clk 0:00:38.5]} 40...
Rd1+ {[%clk 0:00:43.7]} 41. Kh2 {[%clk 0:00:39.4]} 41... Rd2 {[%clk 0:00:38.7]}
42. Kg1 {[%clk 0:00:31.5]} 42... g4 {[%clk 0:00:33.6]} 43. hxg4+ {[%clk
0:00:29.6]} 43... Nxg4 {[%clk 0:00:33.2]} 44. Kf1 {[%clk 0:00:27.9]} 44... Ne3+
{[%clk 0:00:32]} 45. Ke1 {[%clk 0:00:28.6]} 45... Rc2 {[%clk 0:00:31.5]} 46.
Nxb7 {[%clk 0:00:26.9]} 46... Nxg2+ {[%clk 0:00:29.8]} 47. Kd1 {[%clk
0:00:28.2]} 47... Ne3+ {[%clk 0:00:31.1]} 48. Ke1 {[%clk 0:00:29.8]} 48... f3
{[%clk 0:00:27.9]} 49. Nd6+ {[%clk 0:00:29.2]} 49... Kg6 {[%clk 0:00:19.1]} 50.
Ne4 {[%clk 0:00:26.8]} 50... Re2# {[%clk 0:00:08.1]} 0-1

[Event "*** Titled Tuesday 3|2 Blitz"]
[Site "Chess.com"]
[Date "2017.06.06"]
[Round "4"]
[White "Blitzking4444"]
[Black "LonesomeGeorge1"]
[Result "1-0"]
[WhiteElo "2014"]
[BlackElo "2234"]
[TimeControl "180+2"]
[EndTime "14:39:37 PDT"]
[Termination "Blitzking4444 won by checkmate"]

1. e4 {[%clk 0:03:02]} 1... e5 {[%clk 0:03:01.3]} 2. Nf3 {[%clk 0:03:02.9]} 2...
Nc6 {[%clk 0:03:02.7]} 3. d4 {[%clk 0:03:03.9]} 3... exd4 {[%clk 0:03:03.6]} 4.
Nxd4 {[%clk 0:03:05.2]} 4... Bb4+ {[%clk 0:03:04.6]} 5. c3 {[%clk 0:03:04.9]}
5... Bc5 {[%clk 0:03:05.9]} 6. Be3 {[%clk 0:03:05.1]} 6... Bb6 {[%clk
0:03:07.2]} 7. Nf5 {[%clk 0:03:02]} 7... g6 {[%clk 0:03:07.9]} 8. Bxb6 {[%clk
0:03:02.3]} 8... axb6 {[%clk 0:03:09.8]} 9. Ne3 {[%clk 0:03:03.5]} 9... Nf6
{[%clk 0:03:10.8]} 10. f3 {[%clk 0:03:04.2]} 10... O-O {[%clk 0:03:11.6]} 11. c4
{[%clk 0:03:05.6]} 11... d5 {[%clk 0:03:12.4]} 12. cxd5 {[%clk 0:03:00.4]} 12...
Nxe4 {[%clk 0:03:13.6]} 13. fxe4 {[%clk 0:01:42.2]} 13... Qh4+ {[%clk
0:03:13.2]} 14. Kd2 {[%clk 0:01:41.8]} 14... Qxe4 {[%clk 0:03:14.2]} 15. Nc3
{[%clk 0:01:24.5]} 15... Qd4+ {[%clk 0:03:06.3]} 16. Ke2 {[%clk 0:00:55.1]}
16... Bg4+ {[%clk 0:01:34.6]} 17. Nxg4 {[%clk 0:00:55.7]} 17... Qxg4+ {[%clk
0:01:19]} 18. Kf2 {[%clk 0:00:53.4]} 18... Qf4+ {[%clk 0:01:06]} 19. Qf3 {[%clk
0:00:51.3]} 19... Qd2+ {[%clk 0:00:50.1]} 20. Qe2 {[%clk 0:00:48.3]} 20... Qf4+
{[%clk 0:00:47.8]} 21. Qf3 {[%clk 0:00:49]} 21... Qd2+ {[%clk 0:00:30.9]} 22.
Be2 {[%clk 0:00:28.5]} 22... Nd4 {[%clk 0:00:28.8]} 23. Qe3 {[%clk 0:00:12.5]}
23... Qxe3+ {[%clk 0:00:29]} 24. Kxe3 {[%clk 0:00:13.7]} 24... Nc2+ {[%clk
0:00:30.9]} 25. Kd2 {[%clk 0:00:14.9]} 25... Nxa1 {[%clk 0:00:32.8]} 26. Rxa1
{[%clk 0:00:15.6]} 26... Rfe8 {[%clk 0:00:33]} 27. Bf3 {[%clk 0:00:15.2]} 27...
Rad8 {[%clk 0:00:32.6]} 28. Kc2 {[%clk 0:00:11.8]} 28... f5 {[%clk 0:00:33.6]}
29. Rd1 {[%clk 0:00:06.8]} 29... Kf7 {[%clk 0:00:34.7]} 30. Rd2 {[%clk
0:00:05.2]} 30... Kf6 {[%clk 0:00:35.7]} 31. h4 {[%clk 0:00:05.9]} 31... h6
{[%clk 0:00:36.6]} 32. Rf2 {[%clk 0:00:05.8]} 32... g5 {[%clk 0:00:37]} 33.
hxg5+ {[%clk 0:00:07.1]} 33... hxg5 {[%clk 0:00:38.3]} 34. Bg4 {[%clk
0:00:07.8]} 34... Re5 {[%clk 0:00:39.2]} 35. Bf3 {[%clk 0:00:08]} 35... Kg6
{[%clk 0:00:40]} 36. g4 {[%clk 0:00:09.2]} 36... f4 {[%clk 0:00:36.2]} 37. Be4+
{[%clk 0:00:10.3]} 37... Kg7 {[%clk 0:00:36.2]} 38. Bf5 {[%clk 0:00:10.8]} 38...
c6 {[%clk 0:00:35.5]} 39. dxc6 {[%clk 0:00:09.9]} 39... bxc6 {[%clk 0:00:37.4]}
40. Rh2 {[%clk 0:00:10.9]} 40... Rh8 {[%clk 0:00:38.4]} 41. Rd2 {[%clk
0:00:11.1]} 41... Re7 {[%clk 0:00:34.5]} 42. Ne4 {[%clk 0:00:11]} 42... Ra8
{[%clk 0:00:23.6]} 43. Nxg5 {[%clk 0:00:09.3]} 43... Rxa2 {[%clk 0:00:22.8]} 44.
Rh2 {[%clk 0:00:08.6]} 44... Ra1 {[%clk 0:00:18.3]} 45. Rh7+ {[%clk 0:00:08.9]}
45... Kf8 {[%clk 0:00:19.8]} 46. Ne6+ {[%clk 0:00:05.4]} 46... Ke8 {[%clk
0:00:21.1]} 47. Rh8+ {[%clk 0:00:06.2]} 47... Kf7 {[%clk 0:00:21]} 48. Rf8#
{[%clk 0:00:06.9]} 1-0

[Event "*** Titled Tuesday 3|2 Blitz"]
[Site "Chess.com"]
[Date "2017.06.06"]
[Round "4"]
[White "AndreyOstrovskiy"]
[Black "Spinaltap"]
[Result "1-0"]
[WhiteElo "2529"]
[BlackElo "2505"]
[TimeControl "180+2"]
[EndTime "14:39:53 PDT"]
[Termination "AndreyOstrovskiy won by resignation"]

1. e4 {[%clk 0:03:02]} 1... c6 {[%clk 0:02:59]} 2. d4 {[%clk 0:03:02.6]} 2... d5
{[%clk 0:02:59.9]} 3. Nd2 {[%clk 0:03:04.3]} 3... dxe4 {[%clk 0:03:00.3]} 4.
Nxe4 {[%clk 0:03:06.2]} 4... Bf5 {[%clk 0:03:01.4]} 5. Ng3 {[%clk 0:03:07.3]}
5... Bg6 {[%clk 0:03:01.5]} 6. h4 {[%clk 0:03:08.9]} 6... h6 {[%clk 0:03:02.4]}
7. Nf3 {[%clk 0:03:10.5]} 7... Nd7 {[%clk 0:03:03.2]} 8. h5 {[%clk 0:03:11.3]}
8... Bh7 {[%clk 0:03:04.4]} 9. Bd3 {[%clk 0:03:13.2]} 9... Bxd3 {[%clk
0:03:05.4]} 10. Qxd3 {[%clk 0:03:15.1]} 10... e6 {[%clk 0:03:06.7]} 11. Bd2
{[%clk 0:03:16.6]} 11... Ngf6 {[%clk 0:03:07.4]} 12. O-O-O {[%clk 0:03:18.1]}
12... Be7 {[%clk 0:03:05.5]} 13. Kb1 {[%clk 0:03:19.2]} 13... Qb6 {[%clk
0:03:01.1]} 14. Ne4 {[%clk 0:03:14.9]} 14... Rd8 {[%clk 0:02:55.2]} 15. Bc1
{[%clk 0:03:11.1]} 15... c5 {[%clk 0:02:27.7]} 16. Nxf6+ {[%clk 0:02:24.7]}
16... Nxf6 {[%clk 0:02:20.5]} 17. g4 {[%clk 0:02:12.6]} 17... Nxg4 {[%clk
0:01:56.5]} 18. Qe2 {[%clk 0:02:13.2]} 18... O-O {[%clk 0:01:24]} 19. Rhg1
{[%clk 0:02:10.1]} 19... f5 {[%clk 0:01:24.7]} 20. d5 {[%clk 0:02:01.7]} 20...
Bf6 {[%clk 0:01:25.3]} 21. dxe6 {[%clk 0:01:54.8]} 21... Rxd1 {[%clk 0:01:25.6]}
22. Rxd1 {[%clk 0:01:54.6]} 22... Re8 {[%clk 0:01:26.7]} 23. Re1 {[%clk
0:01:53.6]} 23... c4 {[%clk 0:01:10.4]} 24. Qxc4 {[%clk 0:01:50]} 24... Qc6
{[%clk 0:00:37]} 25. Qd3 {[%clk 0:01:12.4]} 25... Rxe6 {[%clk 0:00:36.6]} 26.
Qxf5 {[%clk 0:01:13.3]} 26... Rxe1 {[%clk 0:00:36.4]} 27. Nxe1 {[%clk
0:01:15.2]} 27... Ne5 {[%clk 0:00:30.3]} 28. Nd3 {[%clk 0:01:08.2]} 28... Nxd3
{[%clk 0:00:26.3]} 29. cxd3 {[%clk 0:01:04.9]} 29... Qh1 {[%clk 0:00:25.6]} 30.
Kc2 {[%clk 0:00:57.3]} 30... Qf1 {[%clk 0:00:21.9]} 31. Qf3 {[%clk 0:00:42.5]}
31... b6 {[%clk 0:00:20.3]} 32. Bd2 {[%clk 0:00:38.7]} 32... Qa1 {[%clk
0:00:20.7]} 33. Qd5+ {[%clk 0:00:35.8]} 33... Kh8 {[%clk 0:00:21.4]} 34. Bc3
{[%clk 0:00:34.6]} 34... Bxc3 {[%clk 0:00:21.5]} 35. bxc3 {[%clk 0:00:34.3]}
35... Qe1 {[%clk 0:00:22.2]} 36. Qf3 {[%clk 0:00:23.5]} 36... Qa1 {[%clk
0:00:22]} 37. Qa8+ {[%clk 0:00:21.7]} 37... Kh7 {[%clk 0:00:22.9]} 38. Qxa7
{[%clk 0:00:23]} 38... Qf1 {[%clk 0:00:20.9]} 39. Qxb6 {[%clk 0:00:23.8]} 39...
Qe2+ {[%clk 0:00:21.9]} 40. Kb3 {[%clk 0:00:25.1]} 40... Qxh5 {[%clk 0:00:22.9]}
41. a4 {[%clk 0:00:24.4]} 41... Qd5+ {[%clk 0:00:21.9]} 42. Kb4 {[%clk
0:00:21.5]} 42... Qxd3 {[%clk 0:00:22.8]} 43. Qd4 {[%clk 0:00:21.5]} 43... Qb1+
{[%clk 0:00:23.3]} 44. Ka5 {[%clk 0:00:22.5]} 44... h5 {[%clk 0:00:23.1]} 45. c4
{[%clk 0:00:23.1]} 45... g5 {[%clk 0:00:22.1]} 46. c5 {[%clk 0:00:22.4]} 46...
h4 {[%clk 0:00:21.9]} 47. c6 {[%clk 0:00:23]} 47... Qe1+ {[%clk 0:00:18.3]} 48.
Kb6 {[%clk 0:00:22.5]} 48... Qb1+ {[%clk 0:00:19]} 49. Ka7 {[%clk 0:00:21.8]}
49... h3 {[%clk 0:00:19.8]} 50. Qd7+ {[%clk 0:00:21.9]} 50... Kg6 {[%clk
0:00:20.7]} 51. Qxh3 {[%clk 0:00:22.7]} 51... Qb3 {[%clk 0:00:21]} 52. Qxb3
{[%clk 0:00:21.7]} 1-0

[Event "*** Titled Tuesday 3|2 Blitz"]
[Site "Chess.com"]
[Date "2017.06.06"]
[Round "4"]
[White "anon102030"]
[Black "DanielNaroditsky"]
[Result "0-1"]
[WhiteElo "2582"]
[BlackElo "2755"]
[TimeControl "180+2"]
[EndTime "14:40:13 PDT"]
[Termination "DanielNaroditsky won on time"]

1. e4 {[%clk 0:03:02]} 1... c6 {[%clk 0:03:02]} 2. d3 {[%clk 0:03:02.6]} 2... d5
{[%clk 0:03:03.4]} 3. Nd2 {[%clk 0:03:03.4]} 3... e5 {[%clk 0:03:04.4]} 4. Ngf3
{[%clk 0:03:00.5]} 4... Bd6 {[%clk 0:03:05.6]} 5. d4 {[%clk 0:02:59.4]} 5...
exd4 {[%clk 0:03:03.5]} 6. exd5 {[%clk 0:02:44]} 6... Nf6 {[%clk 0:03:04.7]} 7.
dxc6 {[%clk 0:02:40.5]} 7... Nxc6 {[%clk 0:03:06.6]} 8. Nb3 {[%clk 0:02:38.3]}
8... O-O {[%clk 0:02:54.6]} 9. Be2 {[%clk 0:02:38.5]} 9... Re8 {[%clk
0:02:39.1]} 10. O-O {[%clk 0:02:39.3]} 10... Bg4 {[%clk 0:02:18]} 11. h3 {[%clk
0:02:18.2]} 11... Bh5 {[%clk 0:02:16.2]} 12. Nbxd4 {[%clk 0:02:07.8]} 12... Ne4
{[%clk 0:01:32.6]} 13. Nxc6 {[%clk 0:02:03]} 13... bxc6 {[%clk 0:01:34.5]} 14.
Be3 {[%clk 0:01:52.3]} 14... Qf6 {[%clk 0:01:34.9]} 15. Qd4 {[%clk 0:01:38]}
15... Qe7 {[%clk 0:01:24.5]} 16. Qc4 {[%clk 0:01:21.9]} 16... Nxf2 {[%clk
0:01:12.3]} 17. Bxf2 {[%clk 0:01:22.5]} 17... Qxe2 {[%clk 0:01:13.3]} 18. Qxe2
{[%clk 0:01:22]} 18... Rxe2 {[%clk 0:01:15.2]} 19. Nd4 {[%clk 0:01:12.6]} 19...
Re4 {[%clk 0:01:08.1]} 20. Nxc6 {[%clk 0:01:10.5]} 20... Rc4 {[%clk 0:01:01.6]}
21. Nd4 {[%clk 0:01:09.4]} 21... Bg6 {[%clk 0:01:01.5]} 22. c3 {[%clk
0:01:09.6]} 22... Rb8 {[%clk 0:01:02.2]} 23. Nb3 {[%clk 0:01:04.3]} 23... a6
{[%clk 0:00:54.9]} 24. Rad1 {[%clk 0:01:04.4]} 24... Bf8 {[%clk 0:00:55.7]} 25.
Rd4 {[%clk 0:01:03.5]} 25... Rc6 {[%clk 0:00:55.8]} 26. Rd2 {[%clk 0:00:57.4]}
26... h5 {[%clk 0:00:49.3]} 27. Rfd1 {[%clk 0:00:58.1]} 27... Be7 {[%clk
0:00:50.7]} 28. Nd4 {[%clk 0:00:55.3]} 28... Rc4 {[%clk 0:00:50.6]} 29. Nb3
{[%clk 0:00:52.7]} 29... Ra4 {[%clk 0:00:49.3]} 30. Nc5 {[%clk 0:00:45.7]} 30...
Rxa2 {[%clk 0:00:45.9]} 31. b4 {[%clk 0:00:41.2]} 31... Ra3 {[%clk 0:00:47.2]}
32. Nd7 {[%clk 0:00:25.2]} 32... Rc8 {[%clk 0:00:45.2]} 33. Bd4 {[%clk
0:00:26.2]} 33... h4 {[%clk 0:00:33.1]} 34. Ne5 {[%clk 0:00:25.7]} 34... Bh5
{[%clk 0:00:32.5]} 35. Rf1 {[%clk 0:00:24.6]} 35... Bg5 {[%clk 0:00:33.5]} 36.
Rdf2 {[%clk 0:00:21]} 36... f6 {[%clk 0:00:29.8]} 37. Nf3 {[%clk 0:00:18.7]}
37... Bf4 {[%clk 0:00:31]} 38. Re2 {[%clk 0:00:16]} 38... Bg3 {[%clk 0:00:28]}
39. Re7 {[%clk 0:00:16.1]} 39... Ra2 {[%clk 0:00:23.7]} 40. Bc5 {[%clk 0:00:14]}
40... Bxf3 {[%clk 0:00:18.1]} 41. Rxf3 {[%clk 0:00:12.8]} 41... a5 {[%clk
0:00:14.5]} 42. Rf1 {[%clk 0:00:12.7]} 42... a4 {[%clk 0:00:14.3]} 43. Ra7
{[%clk 0:00:11.7]} 43... Re8 {[%clk 0:00:13]} 44. Re7 {[%clk 0:00:06.4]} 44...
Rd8 {[%clk 0:00:13.7]} 45. Bd4 {[%clk 0:00:07.6]} 45... a3 {[%clk 0:00:12.8]}
46. Rd1 {[%clk 0:00:07]} 46... Rb2 {[%clk 0:00:09.2]} 47. Ra7 {[%clk 0:00:06.6]}
47... a2 {[%clk 0:00:10.6]} 48. Kf1 {[%clk 0:00:04.6]} 48... Re8 {[%clk
0:00:08.8]} 49. c4 {[%clk 0:00:03.5]} 49... Rd2 {[%clk 0:00:08]} 0-1